[Event "Early-Titled-Tuesday-Blitz-September-26-2023"]
[Site "Chess.com"]
[Date "2023.09.26"]
[Round "4"]
[White "JoseRemolar"]
[Black "C_K_G"]
[Result "0-1"]
[WhiteElo "2406"]
[BlackElo "1897"]
[TimeControl "180+1"]
[EndTime "8:40:04 PDT"]
[Termination "C_K_G won by resignation"]

1. d4 {[%clk 0:03:00.9]} 1... d5 {[%clk 0:02:59.8]} 2. Nf3 {[%clk 0:02:58.6]}
2... e6 {[%clk 0:03:00]} 3. e3 {[%clk 0:02:57.7]} 3... Nf6 {[%clk 0:03:00.4]} 4.
Bd3 {[%clk 0:02:57.4]} 4... c5 {[%clk 0:03:01]} 5. b3 {[%clk 0:02:57]} 5... Nc6
{[%clk 0:03:01.6]} 6. Bb2 {[%clk 0:02:55.2]} 6... Bd6 {[%clk 0:03:02.1]} 7. O-O
{[%clk 0:02:54.6]} 7... O-O {[%clk 0:03:02.7]} 8. Ne5 {[%clk 0:02:52.4]} 8...
Qc7 {[%clk 0:02:59]} 9. f4 {[%clk 0:02:52]} 9... a6 {[%clk 0:02:58]} 10. Nd2
{[%clk 0:02:42.3]} 10... b5 {[%clk 0:02:57.1]} 11. c4 {[%clk 0:02:41.7]} 11...
bxc4 {[%clk 0:02:55.8]} 12. bxc4 {[%clk 0:02:42]} 12... Rb8 {[%clk 0:02:53]} 13.
Rb1 {[%clk 0:02:28.4]} 13... cxd4 {[%clk 0:02:43.3]} 14. exd4 {[%clk 0:02:27.9]}
14... dxc4 {[%clk 0:02:31.9]} 15. Ndxc4 {[%clk 0:02:25.6]} 15... Nb4 {[%clk
0:02:14.4]} 16. Be2 {[%clk 0:02:22.9]} 16... Nbd5 {[%clk 0:02:12.7]} 17. Rc1
{[%clk 0:02:12.4]} 17... Bd7 {[%clk 0:01:03]} 18. Rf3 {[%clk 0:01:41]} 18... Bb5
{[%clk 0:01:00.3]} 19. Nxd6 {[%clk 0:01:38.6]} 19... Qxd6 {[%clk 0:00:59.8]} 20.
Ba3 {[%clk 0:01:38]} 20... Bxe2 {[%clk 0:00:58.1]} 21. Qxe2 {[%clk 0:01:36.9]}
21... Nxf4 {[%clk 0:00:49.9]} 22. Qd2 {[%clk 0:01:29.7]} 22... Qxd4+ {[%clk
0:00:10.3]} 23. Qxd4 {[%clk 0:01:28.6]} 23... Ne2+ {[%clk 0:00:10.4]} 24. Kf2
{[%clk 0:01:27.7]} 24... Nxd4 {[%clk 0:00:11.3]} 25. Bxf8 {[%clk 0:01:19.9]}
25... Nxf3 {[%clk 0:00:11]} 26. Bd6 {[%clk 0:00:38.3]} 26... Nxe5 {[%clk
0:00:10.3]} 27. Bxb8 {[%clk 0:00:27.4]} 27... Nd3+ {[%clk 0:00:09.8]} 28. Ke3
{[%clk 0:00:28]} 28... Nxc1 {[%clk 0:00:10.7]} 29. a4 {[%clk 0:00:28.3]} 29...
Nb3 {[%clk 0:00:11]} 30. Bd6 {[%clk 0:00:25.1]} 30... Nd5+ {[%clk 0:00:10.5]}
31. Kd3 {[%clk 0:00:24]} 31... f5 {[%clk 0:00:09.1]} 32. Kc4 {[%clk 0:00:23.8]}
32... Nd2+ {[%clk 0:00:08.6]} 33. Kd3 {[%clk 0:00:19.5]} 33... Nf1 {[%clk
0:00:07.5]} 34. h3 {[%clk 0:00:18.6]} 34... Nfe3 {[%clk 0:00:07.4]} 35. g3
{[%clk 0:00:15.3]} 35... g5 {[%clk 0:00:07.6]} 36. Bc5 {[%clk 0:00:13.1]} 36...
f4 {[%clk 0:00:07.9]} 37. gxf4 {[%clk 0:00:12.7]} 37... gxf4 {[%clk 0:00:08.8]}
38. Ke4 {[%clk 0:00:13.1]} 38... Kf7 {[%clk 0:00:07.6]} 39. a5 {[%clk
0:00:12.8]} 39... Kg6 {[%clk 0:00:07.7]} 40. Bd6 {[%clk 0:00:12]} 40... Kg5
{[%clk 0:00:07.3]} 41. Kf3 {[%clk 0:00:12.8]} 41... Kf5 {[%clk 0:00:07.1]} 42.
Bc5 {[%clk 0:00:12.3]} 42... e5 {[%clk 0:00:07.2]} 43. Ke2 {[%clk 0:00:12.6]}
43... e4 {[%clk 0:00:07.4]} 0-1

[Event "Early-Titled-Tuesday-Blitz-September-26-2023"]
[Site "Chess.com"]
[Date "2023.09.26"]
[Round "4"]
[White "AlmasRakhmatullaev"]
[Black "Iskusnyh"]
[Result "1-0"]
[WhiteElo "2783"]
[BlackElo "2577"]
[TimeControl "180+1"]
[EndTime "8:40:06 PDT"]
[Termination "AlmasRakhmatullaev won by resignation"]

1. e4 {[%clk 0:03:00.9]} 1... e6 {[%clk 0:02:58.1]} 2. d4 {[%clk 0:03:00.3]}
2... d5 {[%clk 0:02:58.5]} 3. Nc3 {[%clk 0:03:00.7]} 3... Nf6 {[%clk 0:02:58.1]}
4. Qd3 {[%clk 0:03:00.4]} 4... c5 {[%clk 0:02:42.1]} 5. dxc5 {[%clk 0:02:53.4]}
5... Bxc5 {[%clk 0:02:19.6]} 6. Nf3 {[%clk 0:02:53.4]} 6... dxe4 {[%clk
0:02:10.8]} 7. Nxe4 {[%clk 0:02:52.5]} 7... Qxd3 {[%clk 0:01:59.4]} 8. Nxf6+
{[%clk 0:02:51.9]} 8... gxf6 {[%clk 0:01:57.7]} 9. Bxd3 {[%clk 0:02:52.8]} 9...
Nc6 {[%clk 0:01:55.9]} 10. Bd2 {[%clk 0:02:52.2]} 10... Nb4 {[%clk 0:01:54.5]}
11. Bb5+ {[%clk 0:02:46.9]} 11... Ke7 {[%clk 0:01:50.3]} 12. Ba4 {[%clk
0:02:42.8]} 12... Bd7 {[%clk 0:01:34]} 13. Bxd7 {[%clk 0:02:30.8]} 13... Nxc2+
{[%clk 0:01:29.5]} 14. Ke2 {[%clk 0:02:28.5]} 14... Kxd7 {[%clk 0:01:14.4]} 15.
Rac1 {[%clk 0:02:25.2]} 15... Nd4+ {[%clk 0:01:13.5]} 16. Nxd4 {[%clk
0:02:25.9]} 16... Bxd4 {[%clk 0:01:13.4]} 17. Rhd1 {[%clk 0:02:26.8]} 17... e5
{[%clk 0:01:09.9]} 18. Be3 {[%clk 0:02:26.4]} 18... Rac8 {[%clk 0:01:05.6]} 19.
Rxc8 {[%clk 0:02:23.3]} 19... Rxc8 {[%clk 0:01:03.3]} 20. Bxd4 {[%clk
0:02:24.2]} 20... exd4 {[%clk 0:01:03.4]} 21. Rxd4+ {[%clk 0:02:24.8]} 21... Ke6
{[%clk 0:01:04]} 22. Rd2 {[%clk 0:02:25]} 22... h5 {[%clk 0:01:01.2]} 23. Kf3
{[%clk 0:02:25.5]} 23... Rc4 {[%clk 0:01:00.3]} 24. g3 {[%clk 0:02:25.1]} 24...
h4 {[%clk 0:00:59.7]} 25. g4 {[%clk 0:02:25.5]} 25... f5 {[%clk 0:00:59.1]} 26.
gxf5+ {[%clk 0:02:19.2]} 26... Kf6 {[%clk 0:00:56.9]} 27. Rd6+ {[%clk
0:02:13.7]} 27... Ke7 {[%clk 0:00:54]} 28. Rd3 {[%clk 0:02:06.5]} 28... Rc2
{[%clk 0:00:47]} 29. Rb3 {[%clk 0:01:34]} 29... b6 {[%clk 0:00:46.8]} 30. Ra3
{[%clk 0:01:33.9]} 30... Rxb2 {[%clk 0:00:44.5]} 31. Rxa7+ {[%clk 0:01:34.4]}
31... Kf6 {[%clk 0:00:44.9]} 32. h3 {[%clk 0:01:32.4]} 32... Rc2 {[%clk
0:00:42.1]} 33. Ra6 {[%clk 0:01:29]} 33... Kxf5 {[%clk 0:00:40.2]} 34. Ra4
{[%clk 0:01:22.5]} 34... b5 {[%clk 0:00:31.1]} 35. Ra5 {[%clk 0:01:18.4]} 35...
Kg6 {[%clk 0:00:26.8]} 36. a3 {[%clk 0:01:14.7]} 36... f5 {[%clk 0:00:25.3]} 37.
Rxb5 {[%clk 0:01:00.1]} 37... Rc3+ {[%clk 0:00:25.1]} 38. Kf4 {[%clk 0:01:00.7]}
38... Rxa3 {[%clk 0:00:25.2]} 39. Rb6+ {[%clk 0:00:58.9]} 39... Kh5 {[%clk
0:00:24.6]} 40. f3 {[%clk 0:00:57.3]} 40... Ra4+ {[%clk 0:00:21.4]} 41. Ke5
{[%clk 0:00:53.1]} 41... Ra3 {[%clk 0:00:20.1]} 42. f4 {[%clk 0:00:49.2]} 42...
Ra5+ {[%clk 0:00:18.6]} 43. Kf6 {[%clk 0:00:46.8]} 43... Kh6 {[%clk 0:00:16.6]}
44. Rb8 {[%clk 0:00:41.7]} 44... Ra6+ {[%clk 0:00:16.3]} 45. Kxf5 {[%clk
0:00:40.7]} 45... Ra3 {[%clk 0:00:16.3]} 46. Kg4 {[%clk 0:00:39]} 46... Rg3+
{[%clk 0:00:15.6]} 47. Kxh4 {[%clk 0:00:36.3]} 47... Rg1 {[%clk 0:00:16.5]} 48.
Rb5 {[%clk 0:00:34.1]} 48... Rg2 {[%clk 0:00:15.3]} 49. Rh5+ {[%clk 0:00:33.4]}
49... Kg6 {[%clk 0:00:15.2]} 50. Rg5+ {[%clk 0:00:34.3]} 1-0

[Event "Early-Titled-Tuesday-Blitz-September-26-2023"]
[Site "Chess.com"]
[Date "2023.09.26"]
[Round "4"]
[White "RafalBRC"]
[Black "ATM622"]
[Result "1-0"]
[WhiteElo "2123"]
[BlackElo "2421"]
[TimeControl "180+1"]
[EndTime "8:40:09 PDT"]
[Termination "RafalBRC won on time"]

1. Nf3 {[%clk 0:02:58.1]} 1... c5 {[%clk 0:02:57.2]} 2. g3 {[%clk 0:02:57.7]}
2... b5 {[%clk 0:02:53.9]} 3. Bg2 {[%clk 0:02:58.6]} 3... Bb7 {[%clk 0:02:53.9]}
4. O-O {[%clk 0:02:58.9]} 4... h5 {[%clk 0:02:53.5]} 5. h4 {[%clk 0:02:56.5]}
5... Nf6 {[%clk 0:02:53.4]} 6. a4 {[%clk 0:02:55.2]} 6... a6 {[%clk 0:02:52.6]}
7. axb5 {[%clk 0:02:54.8]} 7... axb5 {[%clk 0:02:53.5]} 8. Rxa8 {[%clk
0:02:54.9]} 8... Bxa8 {[%clk 0:02:54]} 9. c4 {[%clk 0:02:55]} 9... b4 {[%clk
0:02:53.3]} 10. b3 {[%clk 0:02:54.8]} 10... d5 {[%clk 0:02:52.5]} 11. Bb2 {[%clk
0:02:54.4]} 11... d4 {[%clk 0:02:50.7]} 12. e3 {[%clk 0:02:54.5]} 12... d3
{[%clk 0:02:44.5]} 13. Ne5 {[%clk 0:02:45.4]} 13... Bxg2 {[%clk 0:02:43.3]} 14.
Kxg2 {[%clk 0:02:46.3]} 14... e6 {[%clk 0:02:39.3]} 15. Qf3 {[%clk 0:02:44.5]}
15... Be7 {[%clk 0:02:24.4]} 16. e4 {[%clk 0:02:40.9]} 16... O-O {[%clk
0:02:19.4]} 17. Nxd3 {[%clk 0:02:39.3]} 17... Ng4 {[%clk 0:02:14.1]} 18. Nf4
{[%clk 0:02:35.6]} 18... g6 {[%clk 0:02:10.1]} 19. d3 {[%clk 0:02:29.5]} 19...
Kh7 {[%clk 0:02:05.9]} 20. Nd2 {[%clk 0:02:24.6]} 20... Qd7 {[%clk 0:02:05.7]}
21. Qe2 {[%clk 0:01:54.8]} 21... Qc6 {[%clk 0:01:32.4]} 22. f3 {[%clk
0:01:54.5]} 22... Nh6 {[%clk 0:01:31.1]} 23. Ra1 {[%clk 0:01:41]} 23... Na6
{[%clk 0:01:21.6]} 24. Nf1 {[%clk 0:01:30.6]} 24... Qd6 {[%clk 0:01:14]} 25. Ne3
{[%clk 0:01:27.8]} 25... f5 {[%clk 0:01:08.1]} 26. exf5 {[%clk 0:01:11]} 26...
gxf5 {[%clk 0:01:02.8]} 27. Nxh5 {[%clk 0:01:00.8]} 27... Rg8 {[%clk 0:01:01.9]}
28. f4 {[%clk 0:00:39.6]} 28... Ng4 {[%clk 0:00:55.2]} 29. Nxg4 {[%clk 0:00:37]}
29... Rxg4 {[%clk 0:00:48.7]} 30. Re1 {[%clk 0:00:31.9]} 30... Nc7 {[%clk
0:00:33.7]} 31. Be5 {[%clk 0:00:24.7]} 31... Qc6+ {[%clk 0:00:28.7]} 32. Kh2
{[%clk 0:00:21.6]} 32... Ne8 {[%clk 0:00:22.7]} 33. d4 {[%clk 0:00:19.2]} 33...
Kh6 {[%clk 0:00:19.9]} 34. d5 {[%clk 0:00:13.8]} 34... Qa6 {[%clk 0:00:16.7]}
35. d6 {[%clk 0:00:11.8]} 35... Bxh4 {[%clk 0:00:10.5]} 36. gxh4 {[%clk
0:00:11.3]} 36... Rxh4+ {[%clk 0:00:03.1]} 37. Kg3 {[%clk 0:00:10]} 37... Rg4+
{[%clk 0:00:03.7]} 38. Kf3 {[%clk 0:00:10.5]} 38... Qa3 {[%clk 0:00:02.8]} 39.
d7 {[%clk 0:00:09.1]} 39... Qxb3+ {[%clk 0:00:02.9]} 40. Qe3 {[%clk 0:00:09.6]}
40... Qxc4 {[%clk 0:00:02.7]} 41. dxe8=Q {[%clk 0:00:09.2]} 41... Qd5+ {[%clk
0:00:02.6]} 42. Ke2 {[%clk 0:00:08.6]} 42... Qc4+ {[%clk 0:00:01.5]} 43. Kd2
{[%clk 0:00:08.2]} 43... Qa2+ {[%clk 0:00:01.5]} 44. Kd3 {[%clk 0:00:08.1]}
44... c4+ {[%clk 0:00:01.9]} 45. Kd4 {[%clk 0:00:08.2]} 45... Qb2+ {[%clk
0:00:02]} 46. Kc5 {[%clk 0:00:08.1]} 1-0

[Event "Early-Titled-Tuesday-Blitz-September-26-2023"]
[Site "Chess.com"]
[Date "2023.09.26"]
[Round "4"]
[White "noblerone"]
[Black "Irina_Mikhaylova"]
[Result "1-0"]
[WhiteElo "2503"]
[BlackElo "2293"]
[TimeControl "180+1"]
[EndTime "8:40:10 PDT"]
[Termination "noblerone won by resignation"]

1. d4 {[%clk 0:03:00.9]} 1... Nf6 {[%clk 0:02:58.8]} 2. c4 {[%clk 0:02:57.5]}
2... g6 {[%clk 0:02:59.2]} 3. Nc3 {[%clk 0:02:56.2]} 3... d5 {[%clk 0:02:59.5]}
4. Nf3 {[%clk 0:02:50.5]} 4... Bg7 {[%clk 0:02:59.3]} 5. Bg5 {[%clk 0:02:47.2]}
5... dxc4 {[%clk 0:02:59.3]} 6. e3 {[%clk 0:02:46.9]} 6... Be6 {[%clk
0:02:58.6]} 7. Qa4+ {[%clk 0:02:42.1]} 7... c6 {[%clk 0:02:58.6]} 8. Ne5 {[%clk
0:02:27.6]} 8... b5 {[%clk 0:02:42.5]} 9. Nxb5 {[%clk 0:02:00]} 9... cxb5 {[%clk
0:02:41.8]} 10. Qxb5+ {[%clk 0:02:00.9]} 10... Nbd7 {[%clk 0:02:26.3]} 11. Bxc4
{[%clk 0:01:06.4]} 11... Bxc4 {[%clk 0:02:16.9]} 12. Qxc4 {[%clk 0:00:57.5]}
12... Nxe5 {[%clk 0:01:16.7]} 13. dxe5 {[%clk 0:00:56.8]} 13... Qa5+ {[%clk
0:01:11.6]} 14. Kf1 {[%clk 0:00:55.5]} 14... O-O {[%clk 0:01:08.9]} 15. exf6
{[%clk 0:00:50.2]} 15... Rfc8 {[%clk 0:01:08.4]} 16. Qe2 {[%clk 0:00:37.9]}
16... Qxg5 {[%clk 0:01:07]} 17. fxg7 {[%clk 0:00:37.8]} 17... Rab8 {[%clk
0:00:59.6]} 18. h4 {[%clk 0:00:33]} 18... Qb5 {[%clk 0:00:58.7]} 19. b3 {[%clk
0:00:27.3]} 19... Kxg7 {[%clk 0:00:57.4]} 20. h5 {[%clk 0:00:24.8]} 20... Rc2
{[%clk 0:00:53.2]} 21. Qxb5 {[%clk 0:00:23]} 21... Rxb5 {[%clk 0:00:52.7]} 22.
hxg6 {[%clk 0:00:23.9]} 22... hxg6 {[%clk 0:00:52.4]} 23. Rh4 {[%clk 0:00:24.3]}
23... Rd5 {[%clk 0:00:51.6]} 24. Rf4 {[%clk 0:00:17.6]} 24... Rdd2 {[%clk
0:00:50]} 25. a4 {[%clk 0:00:17.8]} 25... Rb2 {[%clk 0:00:49.4]} 26. b4 {[%clk
0:00:13.3]} 26... e5 {[%clk 0:00:49.6]} 27. Rf3 {[%clk 0:00:10.7]} 27... Rxb4
{[%clk 0:00:49.3]} 28. a5 {[%clk 0:00:10.7]} 28... Rbb2 {[%clk 0:00:48.8]} 29.
g4 {[%clk 0:00:08.9]} 29... g5 {[%clk 0:00:46.8]} 30. Rf5 {[%clk 0:00:08.8]}
30... Kg6 {[%clk 0:00:46.3]} 31. Rc1 {[%clk 0:00:05.4]} 31... Rdc2 {[%clk
0:00:45.9]} 32. Rxc2 {[%clk 0:00:05.3]} 32... Rxc2 {[%clk 0:00:46.2]} 33. Rxe5
{[%clk 0:00:06.2]} 33... Ra2 {[%clk 0:00:46.4]} 34. Rb5 {[%clk 0:00:05.7]} 34...
f6 {[%clk 0:00:46.6]} 35. Kg2 {[%clk 0:00:06.2]} 35... a6 {[%clk 0:00:47]} 36.
Rc5 {[%clk 0:00:06.7]} 36... Ra4 {[%clk 0:00:46.9]} 37. Kf3 {[%clk 0:00:06.9]}
37... Ra3 {[%clk 0:00:44.6]} 38. Rd5 {[%clk 0:00:06.4]} 38... Ra4 {[%clk
0:00:44.7]} 39. Kg3 {[%clk 0:00:06.6]} 39... Kh6 {[%clk 0:00:44.5]} 40. f3
{[%clk 0:00:07.1]} 40... Ra3 {[%clk 0:00:44.3]} 41. e4 {[%clk 0:00:07.7]} 41...
Kg6 {[%clk 0:00:44.2]} 42. e5 {[%clk 0:00:08.4]} 42... fxe5 {[%clk 0:00:44.1]}
43. Rxe5 {[%clk 0:00:09.3]} 43... Kf6 {[%clk 0:00:44.4]} 44. Rc5 {[%clk
0:00:09.1]} 44... Ke6 {[%clk 0:00:41.1]} 45. Rc6+ {[%clk 0:00:09.3]} 45... Ke5
{[%clk 0:00:41.5]} 46. Rxa6 {[%clk 0:00:10.2]} 46... Kd4 {[%clk 0:00:40.2]} 47.
Rd6+ {[%clk 0:00:08.1]} 47... Ke3 {[%clk 0:00:40.4]} 48. a6 {[%clk 0:00:06]}
48... Ke2 {[%clk 0:00:39.9]} 49. Re6+ {[%clk 0:00:06.7]} 49... Kf1 {[%clk
0:00:40.3]} 50. Re5 {[%clk 0:00:06.3]} 50... Rxa6 {[%clk 0:00:38.9]} 51. Rxg5
{[%clk 0:00:06.9]} 51... Ke2 {[%clk 0:00:38.8]} 52. Rf5 {[%clk 0:00:07.4]} 52...
Ke3 {[%clk 0:00:38.6]} 53. g5 {[%clk 0:00:07.9]} 53... Ra1 {[%clk 0:00:37.8]}
54. Kg4 {[%clk 0:00:06]} 54... Rh1 {[%clk 0:00:33.7]} 55. g6 {[%clk 0:00:05.7]}
55... Kd4 {[%clk 0:00:30.8]} 56. Kg5 {[%clk 0:00:05.5]} 1-0

[Event "Early-Titled-Tuesday-Blitz-September-26-2023"]
[Site "Chess.com"]
[Date "2023.09.26"]
[Round "4"]
[White "ExchangeAB"]
[Black "GoltsevDmitry2000"]
[Result "1-0"]
[WhiteElo "2445"]
[BlackElo "2599"]
[TimeControl "180+1"]
[EndTime "8:40:11 PDT"]
[Termination "ExchangeAB won by checkmate"]

1. Nf3 {[%clk 0:03:00.9]} 1... d5 {[%clk 0:02:17.6]} 2. e3 {[%clk 0:03:00.9]}
2... c6 {[%clk 0:02:18.5]} 3. b3 {[%clk 0:03:01]} 3... Nf6 {[%clk 0:02:19.4]} 4.
Bb2 {[%clk 0:03:01.3]} 4... g6 {[%clk 0:02:20.3]} 5. Ne5 {[%clk 0:03:00.4]} 5...
Bg7 {[%clk 0:02:20.9]} 6. Be2 {[%clk 0:03:00.3]} 6... Nbd7 {[%clk 0:02:21.6]} 7.
Nxd7 {[%clk 0:03:00.1]} 7... Bxd7 {[%clk 0:02:22.5]} 8. O-O {[%clk 0:03:00.2]}
8... O-O {[%clk 0:02:23.1]} 9. d3 {[%clk 0:03:00.4]} 9... Ne8 {[%clk 0:02:23.6]}
10. Bxg7 {[%clk 0:02:59.9]} 10... Nxg7 {[%clk 0:02:24.5]} 11. d4 {[%clk
0:02:59]} 11... f6 {[%clk 0:02:24.8]} 12. c4 {[%clk 0:02:59]} 12... e5 {[%clk
0:02:25.2]} 13. dxe5 {[%clk 0:02:57.6]} 13... fxe5 {[%clk 0:02:25.4]} 14. cxd5
{[%clk 0:02:56.7]} 14... Qf6 {[%clk 0:02:25.3]} 15. Nc3 {[%clk 0:02:42.8]} 15...
Rad8 {[%clk 0:02:25.1]} 16. e4 {[%clk 0:02:39.6]} 16... Qg5 {[%clk 0:02:23.2]}
17. Qc1 {[%clk 0:02:32.1]} 17... Qh4 {[%clk 0:02:23.2]} 18. g3 {[%clk
0:02:22.5]} 18... Qh3 {[%clk 0:02:23.2]} 19. Qe3 {[%clk 0:02:18.9]} 19... cxd5
{[%clk 0:02:22.4]} 20. Nxd5 {[%clk 0:02:17.3]} 20... Ne6 {[%clk 0:02:22.8]} 21.
Rfd1 {[%clk 0:01:56.8]} 21... Nd4 {[%clk 0:02:19.9]} 22. Rxd4 {[%clk 0:01:49.1]}
22... exd4 {[%clk 0:02:20.8]} 23. Qxd4 {[%clk 0:01:50]} 23... Be6 {[%clk
0:02:13.1]} 24. Bc4 {[%clk 0:01:35.7]} 24... b6 {[%clk 0:02:08.2]} 25. f4 {[%clk
0:01:32.4]} 25... Rfe8 {[%clk 0:02:03.3]} 26. Nf6+ {[%clk 0:01:28]} 26... Kf7
{[%clk 0:02:03.5]} 27. Nd5 {[%clk 0:01:15.3]} 27... Kg8 {[%clk 0:02:02.4]} 28.
Qb2 {[%clk 0:00:59.2]} 28... Rf8 {[%clk 0:00:37.9]} 29. Rd1 {[%clk 0:00:54.7]}
29... h5 {[%clk 0:00:19.8]} 30. Bf1 {[%clk 0:00:46.2]} 30... Qg4 {[%clk
0:00:18.1]} 31. Be2 {[%clk 0:00:42.1]} 31... Qh3 {[%clk 0:00:17.1]} 32. Nf6+
{[%clk 0:00:32.9]} 32... Kf7 {[%clk 0:00:17.1]} 33. Qe5 {[%clk 0:00:19.2]} 33...
Rxd1+ {[%clk 0:00:16.2]} 34. Bxd1 {[%clk 0:00:20.1]} 34... Rd8 {[%clk
0:00:16.6]} 35. Qc7+ {[%clk 0:00:16.6]} 35... Rd7 {[%clk 0:00:04.7]} 36. Nxd7
{[%clk 0:00:16.4]} 36... Bxd7 {[%clk 0:00:05.6]} 37. Be2 {[%clk 0:00:14.2]}
37... Kf8 {[%clk 0:00:01.9]} 38. Qd8+ {[%clk 0:00:13.6]} 38... Kg7 {[%clk
0:00:02.4]} 39. Qg5 {[%clk 0:00:12.5]} 39... Bg4 {[%clk 0:00:02.1]} 40. Qe5+
{[%clk 0:00:10.8]} 40... Kh7 {[%clk 0:00:02.3]} 41. Qe7+ {[%clk 0:00:10.4]}
41... Kg8 {[%clk 0:00:02.2]} 42. Bc4+ {[%clk 0:00:09.9]} 42... Kh8 {[%clk
0:00:01.2]} 43. Qf8+ {[%clk 0:00:09.9]} 43... Kh7 {[%clk 0:00:01.5]} 44. Bg8+
{[%clk 0:00:10.1]} 44... Kh8 {[%clk 0:00:02.2]} 45. Bf7+ {[%clk 0:00:10.2]}
45... Kh7 {[%clk 0:00:03.1]} 46. Qg8+ {[%clk 0:00:10.6]} 46... Kh6 {[%clk
0:00:03.9]} 47. Qxg6# {[%clk 0:00:11.3]} 1-0

[Event "Early-Titled-Tuesday-Blitz-September-26-2023"]
[Site "Chess.com"]
[Date "2023.09.26"]
[Round "4"]
[White "jraosam"]
[Black "Likvidator228"]
[Result "0-1"]
[WhiteElo "2049"]
[BlackElo "2542"]
[TimeControl "180+1"]
[EndTime "8:40:11 PDT"]
[Termination "Likvidator228 won on time"]

1. Nf3 {[%clk 0:03:00.9]} 1... d5 {[%clk 0:03:00]} 2. c4 {[%clk 0:02:59.5]} 2...
c6 {[%clk 0:02:58.9]} 3. e3 {[%clk 0:03:00.2]} 3... Nf6 {[%clk 0:02:58.6]} 4. b3
{[%clk 0:03:00.9]} 4... Bg4 {[%clk 0:02:57.2]} 5. Bb2 {[%clk 0:03:01.2]} 5... e6
{[%clk 0:02:57.8]} 6. Be2 {[%clk 0:03:00.3]} 6... Nbd7 {[%clk 0:02:58.2]} 7. O-O
{[%clk 0:03:00.7]} 7... Be7 {[%clk 0:02:57.4]} 8. Nc3 {[%clk 0:03:01.1]} 8...
O-O {[%clk 0:02:57.6]} 9. Rc1 {[%clk 0:03:00.2]} 9... a6 {[%clk 0:02:46.2]} 10.
h3 {[%clk 0:02:54.2]} 10... Bh5 {[%clk 0:02:45.8]} 11. Nh4 {[%clk 0:02:43]}
11... Bxe2 {[%clk 0:02:44.9]} 12. Qxe2 {[%clk 0:02:43.4]} 12... b5 {[%clk
0:02:41.2]} 13. Nf3 {[%clk 0:02:38]} 13... Rb8 {[%clk 0:02:38.5]} 14. cxd5
{[%clk 0:02:36.1]} 14... cxd5 {[%clk 0:02:38.4]} 15. Nd4 {[%clk 0:02:35.4]}
15... Rc8 {[%clk 0:02:37.4]} 16. a4 {[%clk 0:02:31.3]} 16... b4 {[%clk
0:02:30.7]} 17. Na2 {[%clk 0:02:28]} 17... Qb6 {[%clk 0:02:30.8]} 18. Rxc8
{[%clk 0:02:15.8]} 18... Rxc8 {[%clk 0:02:30.3]} 19. Rc1 {[%clk 0:02:15.9]}
19... Rxc1+ {[%clk 0:02:30.4]} 20. Bxc1 {[%clk 0:02:16]} 20... Nc5 {[%clk
0:02:25.3]} 21. f4 {[%clk 0:02:09.3]} 21... Nfe4 {[%clk 0:02:23.8]} 22. Bb2
{[%clk 0:02:08]} 22... Bf6 {[%clk 0:02:23.7]} 23. Nc1 {[%clk 0:02:08.5]} 23...
h6 {[%clk 0:02:20]} 24. d3 {[%clk 0:02:07.3]} 24... Nd6 {[%clk 0:02:18.5]} 25.
Qc2 {[%clk 0:02:06.6]} 25... Nd7 {[%clk 0:02:08.4]} 26. Kf2 {[%clk 0:02:02.8]}
26... Qc5 {[%clk 0:02:08.6]} 27. Qxc5 {[%clk 0:01:54.5]} 27... Nxc5 {[%clk
0:02:09.5]} 28. Ke2 {[%clk 0:01:49.6]} 28... Kf8 {[%clk 0:02:07.1]} 29. Kd2
{[%clk 0:01:46.9]} 29... Ke8 {[%clk 0:02:06.2]} 30. Kc2 {[%clk 0:01:47.2]} 30...
Kd7 {[%clk 0:02:04.4]} 31. Nce2 {[%clk 0:01:44.3]} 31... h5 {[%clk 0:01:59.3]}
32. g4 {[%clk 0:01:42]} 32... hxg4 {[%clk 0:01:59.3]} 33. hxg4 {[%clk
0:01:42.9]} 33... g6 {[%clk 0:01:55.5]} 34. g5 {[%clk 0:01:39]} 34... Bxd4
{[%clk 0:01:51.2]} 35. Bxd4 {[%clk 0:01:34.7]} 35... Kc6 {[%clk 0:01:51.2]} 36.
Ng3 {[%clk 0:01:28.2]} 36... Nd7 {[%clk 0:01:46.4]} 37. Bb2 {[%clk 0:01:26]}
37... Nf5 {[%clk 0:01:45.1]} 38. Nxf5 {[%clk 0:01:24.4]} 38... gxf5 {[%clk
0:01:46]} 39. Bd4 {[%clk 0:01:21.2]} 39... Nf8 {[%clk 0:01:40]} 40. Kd2 {[%clk
0:00:55]} 40... Ng6 {[%clk 0:01:35.8]} 41. Ke2 {[%clk 0:00:24.3]} 41... Ne7
{[%clk 0:01:24.2]} 42. Bf6 {[%clk 0:00:24.4]} 42... Nc8 {[%clk 0:01:23.6]} 43.
Kf3 {[%clk 0:00:21.8]} 43... Nd6 {[%clk 0:01:22.9]} 44. Bd4 {[%clk 0:00:20.6]}
44... Nb7 {[%clk 0:01:22.6]} 45. e4 {[%clk 0:00:12.2]} 45... fxe4+ {[%clk
0:01:21.3]} 46. dxe4 {[%clk 0:00:13.1]} 46... Na5 {[%clk 0:01:21.6]} 47. f5
{[%clk 0:00:13.3]} 47... dxe4+ {[%clk 0:01:20.2]} 48. Kxe4 {[%clk 0:00:14.2]}
48... exf5+ {[%clk 0:01:17.4]} 49. Kxf5 {[%clk 0:00:15.1]} 49... Kd7 {[%clk
0:01:17.5]} 50. Kf6 {[%clk 0:00:13.8]} 50... Ke8 {[%clk 0:01:17.2]} 51. Bc5
{[%clk 0:00:14.2]} 51... Nxb3 {[%clk 0:01:16.1]} 52. Bxb4 {[%clk 0:00:14.5]}
52... Nd4 {[%clk 0:01:14.3]} 53. Bc5 {[%clk 0:00:09.8]} 53... Nc6 {[%clk
0:01:14]} 54. Bb6 {[%clk 0:00:08.3]} 54... Nb4 {[%clk 0:01:11.5]} 55. a5 {[%clk
0:00:08.5]} 55... Nc6 {[%clk 0:00:55.2]} 56. Bc7 {[%clk 0:00:05.8]} 56... Nd4
{[%clk 0:00:51.5]} 0-1